bitfinex/quotes_BTCUSD_20240620
["timestamp","ask_amount","ask_price","bid_price","bid_amount"]
[1718868824427,0.321613,65957.0,65956.0,1e-06]
[1718868824660,1.47897942,65957.0,65956.0,1e-06]
[1718868824894,2.64192799,65957.0,65956.0,1e-06]
[1718868825126,2.53271029,65957.0,65956.0,1e-06]
[1718868825405,2.68592788,65957.0,65956.0,1e-06]
[1718868825605,2.77534105,65957.0,65956.0,1e-06]
[1718868825782,3.13544105,65957.0,65956.0,1e-06]
[1718868825960,3.21122105,65957.0,65956.0,1e-06]
[1718868826163,3.68820607,65957.0,65956.0,1e-06]
[1718868826349,3.84136261,65957.0,65956.0,1e-06]
[1718868826547,3.68820607,65957.0,65956.0,1e-06]
[1718868827168,3.84130793,65957.0,65956.0,1e-06]
[1718868827374,3.68820607,65957.0,65956.0,1e-06]
[1718868827816,4.14437607,65957.0,65956.0,1e-06]
[1718868827989,4.29747793,65957.0,65956.0,1e-06]
[1718868828213,4.14437607,65957.0,65956.0,1e-06]
[1718868828637,1.83783302,65952.0,65951.0,1e-08]
[1718868828838,2.52789275,65952.0,65951.0,1e-08]
[1718868829041,2.66392783,65952.0,65951.0,1e-08]
[1718868829243,2.52789275,65952.0,65951.0,1e-08]
[1718868829839,2.53689275,65952.0,65951.0,1e-08]
[1718868830043,2.62273275,65952.0,65951.0,1e-08]
[1718868831704,1.93918596,65952.0,65951.0,1e-08]
[1718868831870,1.93918596,65952.0,65951.0,0.24200001]
[1718868831871,2.01692861,65952.0,65951.0,0.24200001]
[1718868833294,2.08487291,65952.0,65951.0,1e-08]
[1718868833490,2.16948275,65952.0,65951.0,1e-08]
[1718868833696,2.26009255,65952.0,65951.0,1e-08]
[1718868834266,2.52978275,65952.0,65951.0,1e-08]
[1718868834672,2.62037141,65952.0,65951.0,1e-08]
[1718868835071,2.52978275,65952.0,65951.0,1e-08]
[1718868835708,2.64304989,65952.0,65951.0,1e-08]
[1718868835906,3.02314989,65952.0,65951.0,1e-08]
[1718868836190,3.21313275,65952.0,65951.0,1e-08]
[1718868836434,3.32637742,65952.0,65951.0,1e-08]
[1718868837238,3.21313275,65952.0,65951.0,1e-08]
[1718868837416,3.32637742,65952.0,65951.0,1e-08]
[1718868838468,3.21313275,65952.0,65951.0,1e-08]
[1718868838684,3.32637742,65952.0,65951.0,1e-08]
[1718868839246,3.21313275,65952.0,65951.0,1e-08]
[1718868839675,3.22897359,65952.0,65951.0,1e-08]
[1718868839878,3.22983359,65952.0,65951.0,1e-08]
[1718868840441,2.01367143,65952.0,65951.0,1e-08]
[1718868840669,1.70441147,65952.0,65951.0,0.55390001]
[1718868840865,1.5697763,65952.0,65951.0,0.55806728]
[1718868841405,1.57933823,65952.0,65951.0,0.55806728]
[1718868841625,1.56988693,65952.0,65951.0,0.55390001]
[1718868842060,1.56988693,65952.0,65951.0,0.55806728]
[1718868843432,1.26663693,65952.0,65951.0,0.55806728]
[1718868843629,1.26663693,65952.0,65951.0,0.55390001]
[1718868843831,1.26663693,65952.0,65951.0,0.55806728]
[1718868844100,0.66013693,65952.0,65951.0,0.55806728]
[1718868844504,0.56013693,65952.0,65951.0,0.55390001]
[1718868844707,0.48429693,65952.0,65951.0,0.55390001]
[1718868844832,0.48429693,65952.0,65951.0,0.55806321]
[1718868845042,0.47429693,65952.0,65951.0,0.55806321]
[1718868845244,0.46729693,65952.0,65951.0,0.55806321]
[1718868846400,0.46829693,65952.0,65951.0,0.55806321]
[1718868846828,0.16504693,65952.0,65951.0,0.55806321]
[1718868847313,0.46829693,65952.0,65951.0,0.55390001]
[1718868847809,0.46829693,65952.0,65951.0,0.55805721]
[1718868847810,0.16504693,65952.0,65951.0,0.55805721]
[1718868848213,0.46829693,65952.0,65951.0,0.55805721]
[1718868848434,0.16504693,65952.0,65951.0,0.55805721]
[1718868849416,0.46829693,65952.0,65951.0,0.55805721]
[1718868849670,1.15450318,65952.0,65951.0,0.00415721]
[1718868849877,0.56829693,65952.0,65951.0,0.55435721]
[1718868856536,0.26504693,65952.0,65951.0,0.55435721]
[1718868856715,0.16504693,65952.0,65951.0,0.55435721]
[1718868857117,0.155485,65952.0,65951.0,0.55435721]
[1718868857331,0.16827963,65952.0,65951.0,0.55435721]
[1718868857512,0.16827963,65952.0,65951.0,0.55020001]
[1718868857941,0.47152963,65952.0,65951.0,0.55435721]
[1718868858152,1.07802963,65952.0,65951.0,0.55435721]
[1718868858361,1.32229935,65952.0,65951.0,0.00415721]
[1718868858545,1.32229935,65952.0,65951.0,1e-08]
[1718868858785,1.32229935,65952.0,65951.0,0.00415721]
[1718868858987,1.32229935,65952.0,65951.0,1e-08]
[1718868859423,1.23642963,65952.0,65951.0,1e-08]
[1718868859648,1.17802963,65952.0,65951.0,1e-08]
[1718868861176,2.37694075,65952.0,65951.0,1e-08]
[1718868861372,1.72512093,65952.0,65951.0,1e-08]
[1718868861573,1.34643159,65952.0,65951.0,1e-08]
[1718868862216,1.33263696,65952.0,65951.0,1e-08]
[1718868862372,1.34652273,65952.0,65951.0,1e-08]
[1718868862573,1.35552273,65952.0,65951.0,1e-08]
[1718868862968,1.50807687,65952.0,65951.0,1e-08]
[1718868863148,1.50607687,65952.0,65951.0,1e-08]
[1718868863347,1.59287489,65952.0,65951.0,1e-08]
[1718868863585,1.60287489,65952.0,65951.0,1e-08]
[1718868863901,1.61187489,65952.0,65951.0,1e-08]
[1718868864100,1.59287489,65952.0,65951.0,1e-08]
[1718868864255,1.57291687,65952.0,65951.0,1e-08]
[1718868864475,1.42736273,65952.0,65951.0,1e-08]
[1718868864880,1.42036273,65952.0,65951.0,1e-08]
[1718868865465,1.44032075,65952.0,65951.0,1e-08]
[1718868865666,1.58632075,65952.0,65951.0,1e-08]
[1718868865839,1.59232075,65952.0,65951.0,1e-08]
[1718868866135,1.59287489,65952.0,65951.0,1e-08]
[1718868866337,1.73887489,65952.0,65951.0,1e-08]
[1718868866514,1.75187489,65952.0,65951.0,1e-08]
[1718868866719,1.74587489,65952.0,65951.0,1e-08]
[1718868866919,1.73887489,65952.0,65951.0,1e-08]
[1718868867137,1.74487489,65952.0,65951.0,1e-08]
[1718868867346,1.75187489,65952.0,65951.0,1e-08]
[1718868867554,1.60587489,65952.0,65951.0,1e-08]
[1718868868078,1.90912489,65952.0,65951.0,1e-08]
[1718868868214,1.95836074,65952.0,65951.0,1e-08]
[1718868868420,1.93840272,65952.0,65951.0,1e-08]
[1718868868835,1.95836074,65952.0,65951.0,1e-08]
[1718868869491,1.94536074,65952.0,65951.0,1e-08]
[1718868869931,1.8136057,65952.0,65951.0,1e-08]
[1718868870134,1.8326057,65952.0,65951.0,1e-08]
[1718868870519,1.8226057,65952.0,65951.0,1e-08]
[1718868870939,1.8326057,65952.0,65951.0,1e-08]
[1718868871142,1.96884221,65952.0,65951.0,1e-08]
[1718868871350,2.12139635,65952.0,65951.0,1e-08]
[1718868871545,2.03515984,65952.0,65951.0,1e-08]
[1718868872422,2.13601984,65952.0,65951.0,1e-08]
[1718868872609,1.8834657,65952.0,65951.0,1e-08]
[1718868872809,2.0294657,65952.0,65951.0,1e-08]
[1718868875726,2.1294657,65952.0,65951.0,1e-08]
[1718868876933,2.2294657,65952.0,65951.0,1e-08]
[1718868877131,2.7947657,65952.0,65951.0,1e-08]
[1718868877333,3.19568764,65952.0,65951.0,1e-08]
[1718868877532,3.04230484,65952.0,65951.0,1e-08]
[1718868878668,3.19567659,65952.0,65951.0,1e-08]
[1718868878873,3.04230484,65952.0,65951.0,1e-08]
[1718868879471,3.10806775,65952.0,65951.0,1e-08]
[1718868880025,3.41131775,65952.0,65951.0,1e-08]
[1718868880854,3.56120484,65952.0,65951.0,1e-08]
[1718868881053,0.17161302,65939.0,65938.0,0.00948199]
[1718868881271,0.46885077,65939.0,65938.0,0.00948199]
[1718868881435,0.46885077,65939.0,65938.0,0.58448199]
[1718868881436,0.93056077,65939.0,65938.0,0.58448199]
[1718868881788,1.23387077,65939.0,65938.0,0.58819782]
[1718868882124,1.37581182,65939.0,65938.0,0.01319782]
[1718868882395,1.37581182,65939.0,65928.0,0.27428606]
[1718868882396,0.01995802,65938.0,65928.0,0.27428606]
[1718868882626,0.26526337,65929.0,65928.0,0.27428606]
[1718868882769,0.455034,65929.0,65928.0,0.27428606]
[1718868882955,0.87227577,65929.0,65928.0,0.27428606]
[1718868883154,0.97227577,65929.0,65928.0,0.27428606]
[1718868885388,0.97227577,65929.0,65928.0,0.51608606]
[1718868887242,0.97327577,65929.0,65928.0,0.51608606]
[1718868888442,0.36744689,65929.0,65917.0,0.31868199]
[1718868888647,0.816917,65918.0,65917.0,0.31868199]
[1718868888958,0.87240277,65918.0,65917.0,0.31868199]
[1718868889166,0.56899577,65918.0,65917.0,0.31868199]
[1718868889391,0.46899577,65918.0,65917.0,0.58078199]
[1718868889601,0.77240277,65918.0,65917.0,0.58078199]
[1718868889802,0.46899577,65918.0,65917.0,0.58078199]
[1718868890037,0.77240277,65918.0,65917.0,0.58406346]
[1718868890616,0.77440277,65918.0,65917.0,0.58406346]
[1718868890961,0.46999577,65918.0,65917.0,0.58406346]
[1718868891187,0.77240277,65918.0,65917.0,0.58406346]
[1718868891386,0.77340277,65918.0,65917.0,0.58406346]
[1718868892356,0.46999577,65918.0,65917.0,0.58406346]
[1718868892779,0.77440277,65918.0,65917.0,0.58406346]
[1718868893917,0.77340277,65918.0,65917.0,0.58406346]
[1718868894122,0.77240277,65918.0,65917.0,0.58406346]
[1718868894323,0.77240277,65918.0,65917.0,0.40406346]
[1718868895619,0.77240277,65918.0,65917.0,0.00328147]
[1718868895824,0.83080277,65918.0,65917.0,0.00328147]
[1718868896022,0.758527,65917.0,65916.0,0.00948199]
[1718868896221,1.07582377,65917.0,65916.0,0.00948199]
[1718868897027,0.77241277,65917.0,65916.0,0.00948199]
[1718868897240,0.46900177,65917.0,65916.0,0.32548199]
[1718868897460,0.01488577,65917.0,65916.0,0.57808199]
[1718868897738,0.16659077,65917.0,65916.0,0.57808199]
[1718868897921,0.47000177,65917.0,65916.0,0.57808199]
[1718868900295,0.16659077,65917.0,65916.0,0.57808199]
[1718868900837,0.47000177,65917.0,65916.0,0.57808199]
[1718868901624,0.47000177,65917.0,65916.0,0.00948199]
[1718868902179,0.47000177,65917.0,65916.0,0.01280151]
[1718868903782,0.55318215,65917.0,65916.0,0.01280151]
[1718868904019,0.91499315,65917.0,65916.0,0.01280151]
[1718868904229,1.01499315,65917.0,65916.0,0.01280151]
[1718868905039,1.0119817,65917.0,65916.0,0.00948199]
[1718868905526,1.3153927,65917.0,65916.0,0.00948199]
[1718868906977,0.87040132,65917.0,65916.0,0.00948199]
[1718868907186,0.92880132,65917.0,65916.0,0.00948199]
[1718868907789,0.87040132,65917.0,65916.0,0.00948199]
[1718868909408,1.17381232,65917.0,65916.0,0.00948199]
[1718868910461,1.72631232,65917.0,65916.0,0.00948199]
[1718868910681,1.87886646,65917.0,65916.0,0.00948199]
[1718868910835,1.9252493,65917.0,65916.0,0.00948199]
[1718868912506,1.92165457,65917.0,65916.0,0.00948199]
[1718868913682,1.94161259,65917.0,65916.0,0.00948199]
[1718868913886,2.09417371,65917.0,65916.0,0.00948199]
[1718868914241,2.07421569,65917.0,65916.0,0.00948199]
[1718868914589,2.09417371,65917.0,65916.0,0.00948199]
[1718868915018,2.18499436,65917.0,65916.0,0.00948199]
[1718868915446,2.09417371,65917.0,65916.0,0.00948199]
[1718868915728,2.18499436,65917.0,65916.0,0.00948199]
[1718868915946,2.16503634,65917.0,65916.0,0.00948199]
[1718868916148,2.09419182,65917.0,65916.0,0.00236099]
[1718868916472,2.18504088,65917.0,65916.0,0.00236099]
[1718868917238,2.09419182,65917.0,65916.0,0.00236099]
[1718868917438,1.94163768,65917.0,65916.0,0.00236099]
[1718868917705,2.03249015,65917.0,65916.0,0.00236099]
[1718868917906,1.94163768,65917.0,65916.0,0.00236099]
[1718868918321,2.055207,65917.0,65916.0,0.00236099]
[1718868918524,2.20776114,65917.0,65916.0,0.00236099]
[1718868918737,3.17860282,65917.0,65916.0,0.00236099]
[1718868918943,3.27760282,65917.0,65916.0,1e-08]
[1718868919151,3.17760282,65917.0,65916.0,1e-08]
[1718868919354,3.18160282,65917.0,65916.0,1e-08]
[1718868919554,3.28160282,65917.0,65916.0,1e-08]
[1718868919755,3.25744282,65917.0,65916.0,1e-08]
[1718868920199,2.68151966,65917.0,65916.0,1e-08]
[1718868920379,2.75987768,65917.0,65916.0,1e-08]
[1718868920887,2.76087768,65917.0,65916.0,1e-08]
[1718868921227,2.77387768,65917.0,65916.0,1e-08]
[1718868921446,2.76887768,65917.0,65916.0,1e-08]
[1718868921641,2.97243182,65917.0,65916.0,1e-08]
[1718868921842,2.76987768,65917.0,65916.0,1e-08]
[1718868922062,2.78387768,65917.0,65916.0,1e-08]
[1718868923522,3.08728868,65917.0,65916.0,1e-08]
[1718868923721,2.78387768,65917.0,65916.0,1e-08]
[1718868923960,2.72547768,65917.0,65916.0,1e-08]
[1718868924112,2.93643182,65917.0,65916.0,1e-08]
[1718868924895,2.3639738,65917.0,65916.0,1e-08]
[1718868925647,0.71263654,65917.0,65916.0,1e-08]
[1718868925871,0.3650023,65917.0,65916.0,0.24700001]
[1718868926125,0.2132973,65917.0,65916.0,0.32328173]
[1718868926394,0.1,65917.0,65916.0,0.32661821]
[1718868926695,0.1,65917.0,65916.0,0.25033649]
[1718868926871,0.1,65917.0,65916.0,0.24793649]
[1718868927250,0.114,65917.0,65916.0,0.24793649]
[1718868927452,0.014,65917.0,65916.0,0.24793649]
[1718868927655,0.013,65917.0,65916.0,0.24793649]
[1718868927874,0.07584,65917.0,65916.0,0.24793649]
[1718868928283,0.07584,65917.0,65916.0,0.00433648]
[1718868929898,0.22840112,65917.0,65916.0,0.00433648]
[1718868930103,0.78351712,65917.0,65916.0,0.00433648]
[1718868930438,0.48010612,65917.0,65916.0,0.001]
[1718868930664,0.32840112,65917.0,65916.0,0.001]
[1718868930857,0.17584,65917.0,65916.0,0.001]
[1718868931175,0.17584,65917.0,65916.0,0.00412771]
[1718868931353,0.17584,65917.0,65916.0,0.001]
[1718868932139,0.48010612,65917.0,65916.0,0.001]
[1718868932341,0.32840112,65917.0,65916.0,0.001]
[1718868932725,0.17584,65917.0,65916.0,0.001]
[1718868932924,0.17584,65917.0,65916.0,0.5569]
[1718868933106,0.17584,65917.0,65916.0,0.5629139]
[1718868933311,0.17584,65917.0,65916.0,1.0180379]
[1718868933513,0.07584,65917.0,65916.0,1.3798539]
[1718868933932,0.07584,65917.0,65916.0,1.3998539]
[1718868934155,0.0024,65919.0,65918.0,0.778517]
[1718868934406,0.0024,65919.0,65918.0,1.6381377]
[1718868934623,0.0024,65919.0,65918.0,1.81369882]
[1718868935402,0.0024,65919.0,65918.0,1.96269882]
[1718868935783,0.0024,65919.0,65918.0,1.95969882]
[1718868935985,0.0024,65919.0,65918.0,2.26310582]
[1718868936188,0.0034,65919.0,65918.0,2.27710582]
[1718868936606,0.0034,65919.0,65918.0,2.27810582]
[1718868937007,0.0034,65919.0,65918.0,2.27710582]
[1718868937432,0.0044,65919.0,65918.0,2.28810582]
[1718868941029,0.0044,65919.0,65918.0,2.26510582]
[1718868941599,0.0044,65919.0,65918.0,2.39010582]
[1718868942450,0.0044,65919.0,65918.0,2.28810582]
[1718868942883,0.0044,65919.0,65918.0,2.14210582]
[1718868943084,0.0044,65919.0,65918.0,2.28810582]
[1718868945777,0.0044,65919.0,65918.0,2.39010582]
[1718868947136,0.0044,65919.0,65918.0,2.28810582]
[1718868947925,0.0044,65919.0,65918.0,2.39010582]
[1718868948532,0.0034,65919.0,65918.0,2.37610582]
[1718868948771,0.0044,65919.0,65918.0,2.39010582]
[1718868949156,0.0034,65919.0,65918.0,2.37910582]
[1718868949477,0.0044,65919.0,65918.0,2.38910582]
[1718868949851,0.0044,65919.0,65918.0,2.24310582]
[1718868950054,0.0044,65919.0,65918.0,2.38910582]
[1718868950637,0.0044,65919.0,65918.0,2.28710582]
[1718868952727,0.0044,65919.0,65918.0,1.59090582]
[1718868952961,0.0044,65919.0,65918.0,1.73690582]
[1718868953127,0.0044,65919.0,65918.0,1.71390582]
[1718868953546,0.0034,65919.0,65918.0,1.70390582]
[1718868953957,0.0044,65919.0,65918.0,1.71390582]
[1718868954799,0.0034,65919.0,65918.0,1.55390582]
[1718868954977,0.0034,65919.0,65918.0,1.69990582]
[1718868955183,0.0044,65919.0,65918.0,1.71390582]
[1718868955787,0.0044,65919.0,65918.0,1.56790582]
[1718868955987,0.0044,65919.0,65918.0,1.71390582]
[1718868957022,0.0044,65919.0,65918.0,1.2579377]
[1718868957555,0.0044,65919.0,65918.0,1.1703377]
[1718868958435,0.0044,65919.0,65918.0,1.7504377]
[1718868959064,0.0044,65919.0,65918.0,2.33140582]
[1718868960145,0.0044,65919.0,65918.0,2.22940582]
[1718868961002,0.0044,65919.0,65918.0,2.33140582]
[1718868961211,0.0044,65919.0,65918.0,2.22940582]
[1718868961418,0.0044,65919.0,65918.0,2.33140582]
[1718868961880,0.0044,65919.0,65918.0,2.22940582]
[1718868962086,0.0044,65919.0,65918.0,2.33140582]
[1718868966325,0.0044,65919.0,65918.0,2.22940582]
[1718868967151,0.0044,65919.0,65918.0,1.1119377]
[1718868967354,0.01385335,65919.0,65918.0,1.1703377]
[1718868967558,0.01385335,65919.0,65918.0,0.8085307]
[1718868967802,0.01385335,65919.0,65918.0,0.8669307]
[1718868970867,0.01471335,65919.0,65918.0,0.8669307]
[1718868973147,0.01471353,65919.0,65918.0,0.8669307]
[1718868973319,0.01471353,65919.0,65918.0,0.7885307]
[1718868973478,0.01471353,65919.0,65918.0,0.8469307]
[1718868974332,0.01471354,65919.0,65918.0,0.8469307]
[1718868974921,0.01471354,65919.0,65918.0,0.7885307]
[1718868975123,0.01471354,65919.0,65918.0,0.8469307]
[1718868975461,0.01471354,65919.0,65918.0,0.8669307]
[1718868975688,0.00526,65919.0,65918.0,0.8669307]
[1718868976435,0.01471355,65919.0,65918.0,0.8669307]
[1718868976650,0.00526,65919.0,65918.0,0.8669307]
[1718868978115,0.01471349,65919.0,65918.0,0.8669307]
[1718868978923,0.01471349,65919.0,65918.0,0.0300137]
[1718868978924,0.75611449,65919.0,65918.0,0.0300137]
[1718868979128,1.16546684,65919.0,65918.0,0.0300137]
[1718868979544,1.16546684,65919.0,65918.0,0.024]
[1718868979545,1.36291849,65919.0,65918.0,0.024]
[1718868979754,1.46291849,65919.0,65918.0,0.024]
[1718868979887,1.46291849,65919.0,65918.0,0.014]
[1718868979888,1.46191849,65919.0,65918.0,0.014]
[1718868980438,0.758527,65917.0,65916.0,0.000946]
[1718868980678,1.65069149,65917.0,65916.0,0.000946]
[1718868981643,1.65169149,65917.0,65916.0,0.009946]
[1718868981989,1.34828049,65917.0,65916.0,0.009946]
[1718868982199,1.34828166,65917.0,65916.0,0.009946]
[1718868983459,1.34928166,65917.0,65916.0,0.023946]
[1718868984516,1.34928166,65917.0,65916.0,0.02367013]
[1718868985181,0.01145466,65917.0,65916.0,0.02367013]
[1718868985612,0.01145466,65917.0,65916.0,0.02909388]
[1718868988481,0.0043164,65917.0,65916.0,0.02909388]
[1718868988772,0.30339,65922.0,65916.0,0.02909388]
[1718868988983,0.1,65921.0,65916.0,0.02909388]
[1718868989849,0.1,65921.0,65916.0,0.00609388]
[1718868990071,0.1,65921.0,65916.0,0.02009388]
[1718868990277,0.1,65921.0,65916.0,0.01209388]
[1718868990710,0.101,65921.0,65916.0,0.01509388]
[1718868990952,0.102,65921.0,65916.0,0.02309388]
[1718868992023,0.16694107,65921.0,65916.0,0.02309388]
[1718868992430,0.21863907,65921.0,65916.0,0.02309388]
[1718868993502,0.002,65921.0,65916.0,0.02309388]
[1718868994530,0.002,65921.0,65916.0,0.17480088]
[1718868994900,0.102,65921.0,65916.0,0.17480188]
[1718868995107,0.102,65921.0,65920.0,0.455097]
[1718868995307,0.102,65921.0,65920.0,0.513497]
[1718868995518,0.002,65921.0,65920.0,0.53892496]
[1718868995726,0.002,65921.0,65920.0,1.39782296]
[1718868995928,0.001,65921.0,65920.0,1.39782296]
[1718868996156,0.00086,65928.0,65926.0,0.151683]
[1718868996349,0.00086,65928.0,65927.0,0.151682]
[1718868996576,0.00086,65928.0,65927.0,0.15710927]
[1718868997609,0.00186,65928.0,65927.0,0.15710927]
[1718868997849,0.00186,65928.0,65927.0,0.16610927]
[1718868998256,0.00186,65928.0,65927.0,0.77283927]
[1718868998457,0.00186,65928.0,65927.0,1.38343927]
[1718868998778,0.00186,65928.0,65927.0,1.68680427]
[1718868998925,0.01131286,65928.0,65927.0,1.68680427]
[1718868999133,0.01231286,65928.0,65927.0,1.69380427]
[1718868999542,0.01131286,65928.0,65927.0,1.68480427]
[1718868999762,0.01131286,65928.0,65927.0,1.69880427]
[1718869000127,0.01031286,65928.0,65927.0,1.67780427]
[1718869000544,0.01031286,65928.0,65927.0,1.70580427]
[1718869000991,0.01031286,65928.0,65927.0,1.69180427]
[1718869001421,0.01031286,65928.0,65927.0,1.70580427]
[1718869002671,0.0103124,65928.0,65927.0,1.70580427]
[1718869002880,0.00086,65928.0,65927.0,1.70580427]
[1718869003528,0.31419664,66032.0,65927.0,1.70580427]
[1718869003697,0.31419664,66032.0,65945.0,0.1]
[1718869003698,0.03052,65981.0,65945.0,0.1]
[1718869003952,0.05352,65981.0,65955.0,0.07628172]
[1718869004152,2.22679379,65981.0,65955.0,0.07628172]
[1718869004388,2.095563,65981.0,65955.0,0.07628172]
[1718869004617,1.924105,65981.0,65955.0,0.07628172]
[1718869004861,0.1293,65981.0,65955.0,0.07628172]
[1718869005083,0.09878,65981.0,65955.0,0.07628172]
[1718869005288,0.09878,65981.0,65955.0,0.07728172]
[1718869005695,0.19878,65981.0,65955.0,0.07728172]
[1718869005910,0.19878,65981.0,65962.0,0.07628172]
[1718869006704,0.5019,65981.0,65969.0,0.07628172]
[1718869006897,0.19878,65981.0,65969.0,0.07628172]
[1718869008387,0.19878,65981.0,65969.0,0.07728172]
[1718869008919,0.19878,65981.0,65976.0,0.07628172]
[1718869010119,0.19878,65981.0,65976.0,0.07728172]
[1718869010972,0.19878,65981.0,65976.0,0.07828172]
[1718869013110,0.17578,65981.0,65976.0,0.07828172]
[1718869013293,0.17578,65981.0,65977.0,0.00540582]
[1718869013545,0.07578,65981.0,65977.0,0.00540582]
[1718869014576,0.13844252,65997.0,65977.0,0.00640582]
[1718869014804,0.13844252,65997.0,65992.0,0.07628172]
[1718869015125,0.1,65996.0,65985.0,0.07628172]
[1718869016150,0.023,65995.0,65985.0,0.07628172]
[1718869017001,0.023,65995.0,65992.0,0.07628172]
[1718869017219,0.023,65995.0,65992.0,0.07728172]
[1718869017633,0.023,65995.0,65992.0,0.07628172]
[1718869018214,0.023,65995.0,65985.0,0.07728172]
[1718869018415,0.023,65995.0,65993.0,0.00515875]
[1718869018619,0.023,65995.0,65992.0,0.001]
[1718869019470,0.023,65995.0,65985.0,0.07628172]
[1718869019894,0.023,65995.0,65986.0,0.00515944]
[1718869020303,0.023,65995.0,65992.0,0.001]
[1718869021229,0.15256112,65993.0,65976.0,0.07628172]
[1718869021462,0.023,65995.0,65976.0,0.07628172]
[1718869021463,0.15256112,65987.0,65976.0,0.07628172]
[1718869021599,0.1,65986.0,65976.0,0.07628172]
[1718869021801,0.15256112,65985.0,65976.0,0.07628172]
[1718869022178,0.1,65984.0,65977.0,0.00516032]
[1718869022416,0.1,65984.0,65983.0,0.07628172]
[1718869022651,0.1584,65984.0,65983.0,0.07628172]
[1718869022852,0.31096112,65984.0,65983.0,0.08144145]
[1718869023132,0.21096112,65984.0,65983.0,0.07628172]
[1718869023326,0.31096112,65984.0,65983.0,0.08144145]
[1718869023485,1.14449812,65984.0,65983.0,0.08144145]
[1718869023686,1.14449812,65984.0,65983.0,0.07628172]
[1718869024697,1.44960112,65984.0,65983.0,0.07728172]
[1718869025515,1.44960112,65984.0,65983.0,0.07828172]
[1718869028822,1.44960112,65984.0,65983.0,0.002]
[1718869029331,1.44960112,65984.0,65976.0,0.07628172]
[1718869029541,0.816237,65977.0,65976.0,0.07628172]
[1718869029663,1.37193312,65977.0,65976.0,0.07628172]
[1718869030092,1.37193312,65977.0,65959.0,0.05]
[1718869030093,0.31096112,65977.0,65959.0,0.05]
[1718869030297,0.816387,65964.0,65961.0,0.5827]
[1718869030540,0.309997,65964.0,65961.0,0.6827]
[1718869030751,0.1,65964.0,65963.0,1.1579]
[1718869031543,0.151596,65965.0,65964.0,0.1]
[1718869031738,0.251596,65965.0,65964.0,0.1]
[1718869032859,0.554787,65965.0,65964.0,0.1]
[1718869033637,0.554787,65965.0,65963.0,1.0579]
[1718869033638,0.454792,65964.0,65963.0,1.0579]
[1718869033857,0.554792,65964.0,65963.0,1.0579]
[1718869034242,0.554792,65964.0,65963.0,0.5827]
[1718869034961,0.557792,65964.0,65963.0,0.5827]
[1718869035797,0.557792,65964.0,65963.0,0.6827]
[1718869036007,0.561792,65964.0,65963.0,0.6827]
[1718869037578,0.258597,65964.0,65963.0,0.6827]
[1718869037785,0.258597,65964.0,65963.0,0.7027]
[1718869038008,0.258597,65964.0,65963.0,0.68786115]
[1718869038183,0.258597,65964.0,65963.0,0.70786115]
[1718869038589,0.107,65964.0,65963.0,0.70786115]
[1718869038791,0.12320547,65965.0,65963.0,0.70786115]
[1718869038991,0.1,65965.0,65963.0,0.70786115]
[1718869039199,0.1,65965.0,65964.0,0.12]
[1718869039775,0.1,65965.0,65964.0,0.12516105]
[1718869040522,0.1,65968.0,65966.0,0.1]
[1718869040725,0.1,65968.0,65967.0,0.00516076]
[1718869040926,0.27492058,65968.0,65967.0,0.00516076]
[1718869041131,0.27492058,65968.0,65966.0,0.1]
[1718869041329,0.151591,65967.0,65966.0,0.1]
[1718869041529,0.1,65967.0,65966.0,0.1]
[1718869041763,0.1,65967.0,65965.0,0.5733]
[1718869041958,0.1,65966.0,65965.0,0.5733]
[1718869042157,0.1,65966.0,65965.0,0.6733]
[1718869043129,0.1,65966.0,65965.0,0.5733]
[1718869043325,0.102,65967.0,65966.0,0.1]
[1718869043772,0.102,65967.0,65966.0,0.12]
[1718869044544,0.1,65967.0,65966.0,0.6947]
[1718869044752,0.02333258,65968.0,65967.0,0.3654]
[1718869045004,0.1,65969.0,65967.0,0.3654]
[1718869045213,0.1,65969.0,65968.0,0.12]
[1718869045370,0.1,65969.0,65968.0,0.6993]
[1718869045985,0.02331266,65970.0,65969.0,0.12]
[1718869046369,0.1,65972.0,65971.0,0.1]
[1718869046569,0.1,65972.0,65966.0,0.1]
[1718869046570,0.209985,65970.0,65966.0,0.1]
[1718869046767,0.513153,65970.0,65969.0,0.07628172]
[1718869046929,0.554753,65970.0,65969.0,0.07628172]
[1718869047128,0.251585,65970.0,65969.0,0.07628172]
[1718869047968,0.256585,65970.0,65969.0,0.07628172]
[1718869048539,0.559753,65970.0,65969.0,0.07628172]
[1718869048748,0.563753,65970.0,65969.0,0.07628172]
[1718869049346,0.260585,65970.0,65969.0,0.07628172]
[1718869049846,0.255585,65970.0,65969.0,0.07628172]
[1718869050274,0.260585,65970.0,65969.0,0.07628172]
[1718869050476,0.260585,65970.0,65968.0,0.31998172]
[1718869050695,0.1,65969.0,65968.0,0.31998172]
[1718869051054,0.1,65969.0,65968.0,0.33998172]
[1718869052169,0.005,65970.0,65969.0,0.12]
[1718869052369,0.005,65970.0,65969.0,0.19628172]
[1718869052871,0.005,65970.0,65969.0,0.20144093]
[1718869053071,0.251575,65974.0,65971.0,0.1]
[1718869053275,0.251575,65974.0,65972.0,0.00515891]
[1718869055303,0.256575,65974.0,65972.0,0.00515891]
[1718869055504,0.260575,65974.0,65972.0,0.00515891]
[1718869055902,0.260575,65974.0,65973.0,0.1]
[1718869056095,0.109,65974.0,65973.0,0.10515882]
[1718869056341,0.03287293,65974.0,65973.0,0.66705882]
[1718869056513,0.13287293,65974.0,65973.0,0.66705882]
[1718869056779,0.12787293,65974.0,65973.0,0.66705882]
[1718869057200,0.13287293,65974.0,65973.0,0.66705882]
[1718869057629,0.02787293,65974.0,65973.0,0.66705882]
[1718869057993,0.02887293,65974.0,65973.0,0.66705882]
[1718869058191,0.02887293,65974.0,65973.0,0.68705882]
[1718869058396,0.02487293,65974.0,65973.0,0.68705882]
[1718869058599,0.02887293,65974.0,65973.0,0.68705882]
[1718869058967,0.02487293,65974.0,65973.0,0.68705882]
[1718869059929,0.001,65974.0,65973.0,0.68905882]
[1718869060349,0.001,65974.0,65973.0,0.68705882]
[1718869060960,0.1,65978.0,65973.0,0.68705882]
[1718869061212,0.12355897,65978.0,65973.0,0.68705882]
[1718869061415,0.12355897,65978.0,65977.0,0.1]
[1718869061839,0.12355897,65978.0,65977.0,0.10515583]
[1718869062155,0.02355897,65978.0,65977.0,0.00515583]